bitfinex-derivatives/quotes_BTCF0:USTF0_20240825
["timestamp","ask_amount","ask_price","bid_price","bid_amount"]
[1724600247214,0.25204237,64139.0,64138.0,0.06571025]
[1724600248207,0.18973826,64139.0,64138.0,0.06571025]
[1724600250915,0.18973826,64139.0,64138.0,0.0034]
[1724600251510,0.25204237,64139.0,64138.0,0.0034]
[1724600253910,0.18973826,64139.0,64138.0,0.0034]
[1724600254122,0.18973826,64139.0,64138.0,0.06571025]
[1724600254704,0.25204237,64139.0,64138.0,0.0034]
[1724600254909,0.18973826,64139.0,64138.0,0.0034]
[1724600255312,0.25204237,64139.0,64138.0,0.0034]
[1724600260006,0.09973826,64139.0,64138.0,0.06571025]
[1724600260318,0.18973826,64139.0,64138.0,0.06571025]
[1724600261216,0.25200622,64139.0,64138.0,0.0034]
[1724600262313,0.25200785,64139.0,64138.0,0.0034]
[1724600266314,0.18973826,64139.0,64138.0,0.0034]
[1724600269023,0.25201567,64139.0,64138.0,0.0034]
[1724600270616,0.18973826,64139.0,64138.0,0.0034]
[1724600270821,0.25201567,64139.0,64138.0,0.0034]
[1724600272025,0.18973826,64139.0,64138.0,0.0034]
[1724600272221,0.25203295,64139.0,64138.0,0.0034]
[1724600272929,0.25204079,64139.0,64138.0,0.0034]
[1724600273113,0.18973826,64139.0,64138.0,0.0034]
[1724600288730,0.25205625,64139.0,64138.0,0.20005085]
[1724600289435,0.25205625,64139.0,64138.0,0.08131768]
[1724600289929,0.25205625,64139.0,64138.0,0.0034]
[1724600290639,0.25205625,64139.0,64138.0,0.3642]
[1724600291033,0.18973826,64139.0,64138.0,0.3642]
[1724600291237,0.25204164,64139.0,64138.0,0.3642]
[1724600292826,0.18973826,64139.0,64138.0,0.3642]
[1724600295633,0.18973826,64139.0,64138.0,0.0034]
[1724600301837,0.18973826,64139.0,64138.0,0.06574767]
[1724600302438,0.18973826,64139.0,64138.0,0.0034]
[1724600305939,0.26765626,64139.0,64138.0,0.0034]
[1724600307144,0.31345626,64139.0,64138.0,0.0034]
[1724600309945,0.39129449,64139.0,64138.0,0.0034]
[1724600310149,0.31345626,64139.0,64138.0,0.0034]
[1724600311046,0.39129218,64139.0,64138.0,0.0034]
[1724600311242,0.31345626,64139.0,64138.0,0.0034]
[1724600311444,0.17757423,64139.0,64138.0,0.171318]
[1724600311637,0.002,64139.0,64138.0,0.171318]
[1724600311839,0.07783597,64151.0,64138.0,0.25213197]
[1724600312144,0.01989376,64152.0,64150.0,0.09]
[1724600312339,0.0779,64153.0,64150.0,0.15230082]
[1724600312541,0.077896,64156.0,64152.0,0.077901]
[1724600312743,0.077896,64156.0,64155.0,0.4508]
[1724600312941,0.077896,64156.0,64155.0,0.49749455]
[1724600313156,0.077896,64156.0,64155.0,0.4508]
[1724600313451,0.077896,64156.0,64155.0,0.49786789]
[1724600313842,0.077896,64156.0,64155.0,0.4512]
[1724600314347,0.077896,64156.0,64155.0,0.49784983]
[1724600315139,0.083896,64156.0,64155.0,0.49784983]
[1724600315352,0.083896,64156.0,64155.0,0.4512]
[1724600315543,0.089896,64156.0,64155.0,0.4512]
[1724600316148,0.012,64156.0,64155.0,0.4512]
[1724600316452,0.102,64156.0,64155.0,0.40781523]
[1724600316758,0.102,64156.0,64155.0,0.3612]
[1724600318752,0.179896,64156.0,64155.0,0.3612]
[1724600321445,0.089896,64156.0,64155.0,0.3612]
[1724600321645,0.179896,64156.0,64155.0,0.3612]
[1724600322149,0.089896,64156.0,64155.0,0.3612]
[1724600322357,0.179896,64156.0,64155.0,0.3612]
[1724600323646,0.179896,64156.0,64155.0,0.0004]
[1724600323953,0.179896,64156.0,64155.0,0.3612]
[1724600329558,0.089896,64156.0,64155.0,0.3612]
[1724600332054,0.089896,64156.0,64155.0,0.0004]
[1724600332358,0.179896,64156.0,64155.0,0.0004]
[1724600338559,0.179896,64156.0,64155.0,0.04701523]
[1724600338759,0.179896,64156.0,64155.0,0.0004]
[1724600345373,0.24222159,64156.0,64155.0,0.0004]
[1724600345965,0.24222159,64156.0,64155.0,0.3612]
[1724600347467,0.179896,64156.0,64155.0,0.3612]
[1724600349164,0.24222691,64156.0,64155.0,0.3612]
[1724600349363,0.179896,64156.0,64155.0,0.3612]
[1724600349564,0.179896,64156.0,64155.0,0.43908354]
[1724600351261,0.179896,64156.0,64155.0,0.3612]
[1724600352466,0.089896,64156.0,64155.0,0.3612]
[1724600356275,0.089896,64156.0,64155.0,0.0004]
[1724600356577,0.089896,64156.0,64155.0,0.3612]
[1724600358385,0.089896,64156.0,64155.0,0.55778999]
[1724600359174,0.089896,64156.0,64155.0,0.3612]
[1724600359970,0.179896,64156.0,64155.0,0.3612]
[1724600364287,0.24222794,64156.0,64155.0,0.43912034]
[1724600366891,0.179896,64156.0,64155.0,0.3612]
[1724600367918,0.179896,64156.0,64155.0,0.0004]
[1724600370194,0.089896,64156.0,64155.0,0.0004]
[1724600370388,0.179896,64156.0,64155.0,0.0004]
[1724600375686,0.077898,64154.0,64153.0,0.42313716]
[1724600375902,0.077898,64154.0,64153.0,0.3608]
[1724600376081,0.077902,64151.0,64150.0,0.06233716]
[1724600376286,0.438698,64154.0,64147.0,0.06233716]
[1724600376287,0.16786491,64152.0,64147.0,0.06233716]
[1724600376597,0.167904,64149.0,64147.0,0.06233716]
[1724600376893,0.167904,64149.0,64146.0,0.06233716]
[1724600377204,0.168304,64149.0,64146.0,0.06233716]
[1724600377883,0.168304,64149.0,64145.0,0.06233716]
[1724600378090,0.168304,64149.0,64148.0,0.04695462]
[1724600378290,0.078304,64149.0,64148.0,0.04695462]
[1724600378492,0.078304,64149.0,64148.0,0.00023386]
[1724600378493,0.14053449,64149.0,64148.0,0.00023386]
[1724600378697,0.16097955,64149.0,64148.0,0.00023386]
[1724600379191,0.16097955,64149.0,64148.0,0.05093955]
[1724600379897,0.16097955,64149.0,64148.0,0.14093955]
[1724600380094,0.09874906,64149.0,64148.0,0.15657102]
[1724600380396,0.09874906,64149.0,64148.0,0.09423386]
[1724600380589,0.09874906,64149.0,64148.0,0.19013386]
[1724600380791,0.0004,64149.0,64148.0,0.19013386]
[1724600381391,0.0004,64149.0,64148.0,0.2680542]
[1724600381593,0.0004,64149.0,64148.0,0.19013386]
[1724600383192,0.0004,64149.0,64148.0,0.55093386]
[1724600383392,0.0004,64149.0,64148.0,0.62883986]
[1724600388504,0.0004,64149.0,64148.0,0.26803986]
[1724600388703,0.0004,64149.0,64148.0,0.62883986]
[1724600390200,0.0904,64149.0,64148.0,0.49143986]
[1724600391095,0.0904,64149.0,64148.0,0.44293986]
[1724600396007,0.0004,64149.0,64148.0,0.44293986]
[1724600402809,0.0904,64149.0,64148.0,0.44293986]
[1724600404614,0.0904,64149.0,64148.0,0.08213986]
[1724600404819,0.0904,64149.0,64148.0,0.44293986]
[1724600407317,0.0904,64149.0,64148.0,0.5208602]
[1724600408013,0.0904,64149.0,64148.0,0.63957792]
[1724600408814,0.0004,64149.0,64148.0,0.63957792]
[1724600409026,0.0004,64149.0,64148.0,0.68577792]
[1724600409220,0.0004,64149.0,64148.0,0.60785758]
[1724600410620,0.0004,64149.0,64148.0,0.70138411]
[1724600410817,0.14012849,64154.0,64151.0,0.077901]
[1724600411019,0.077898,64154.0,64153.0,0.07792071]
[1724600411317,0.077898,64154.0,64152.0,0.24582171]
[1724600411519,0.06223049,64153.0,64152.0,0.167901]
[1724600411821,0.06183049,64153.0,64152.0,0.167901]
[1724600414122,0.06183049,64153.0,64152.0,0.077901]
[1724600414123,0.006,64153.0,64152.0,0.077901]
[1724600415723,0.006,64153.0,64149.0,0.07792071]
[1724600416017,0.09,64150.0,64149.0,0.07792071]
[1724600416217,0.09,64150.0,64148.0,0.48515457]
[1724600417117,0.09,64150.0,64149.0,0.3624]
[1724600417618,0.09,64150.0,64149.0,0.3608]
[1724600418418,0.09,64150.0,64149.0,0.47951215]
[1724600418622,0.09,64150.0,64149.0,0.48151215]
[1724600424921,0.077902,64151.0,64149.0,0.12071215]
[1724600425121,0.077902,64151.0,64150.0,0.55740738]
[1724600425829,0.077902,64151.0,64150.0,0.55780738]
[1724600426422,0.077902,64151.0,64150.0,0.3612]
[1724600427722,0.078902,64151.0,64150.0,0.3612]
[1724600427923,0.079902,64151.0,64150.0,0.3612]
[1724600434131,0.079902,64151.0,64150.0,0.43909523]
[1724600435231,0.079902,64151.0,64150.0,0.55780946]
[1724600435431,0.079902,64151.0,64150.0,0.19700946]
[1724600435732,0.079902,64151.0,64150.0,0.55780946]
[1724600435931,0.079902,64151.0,64150.0,0.19700946]
[1724600436230,0.079902,64151.0,64150.0,0.55780946]
[1724600436822,0.079902,64151.0,64150.0,0.55780944]
[1724600438927,0.079902,64151.0,64150.0,0.19700944]
[1724600439425,0.079902,64151.0,64150.0,0.55780944]
[1724600440925,0.079902,64151.0,64150.0,0.19700944]
[1724600441127,0.079902,64151.0,64150.0,0.47991421]
[1724600441527,0.079902,64151.0,64150.0,0.3612]
[1724600445530,0.079902,64151.0,64150.0,0.0004]
[1724600445732,0.079902,64151.0,64150.0,0.3612]
[1724600446534,0.079902,64151.0,64150.0,0.0004]
[1724600446737,0.079902,64151.0,64150.0,0.3612]
[1724600448640,0.079902,64151.0,64150.0,0.47991394]
[1724600451138,0.079902,64151.0,64150.0,0.47991395]
[1724600455045,0.079902,64151.0,64150.0,0.11911395]
[1724600455243,0.079902,64151.0,64150.0,0.47991395]
[1724600456249,0.079902,64151.0,64150.0,0.47991411]
[1724600458853,0.079902,64151.0,64150.0,0.55785527]
[1724600459644,0.079902,64151.0,64150.0,0.19705527]
[1724600459947,0.079902,64151.0,64150.0,0.55785527]
[1724600460548,0.079902,64151.0,64150.0,0.55785581]
[1724600461555,0.079902,64151.0,64150.0,0.19705581]
[1724600461749,0.079902,64151.0,64150.0,0.55785581]
[1724600463747,0.079902,64151.0,64150.0,0.0004]
[1724600463949,0.079902,64151.0,64150.0,0.3612]
[1724600471753,0.079902,64151.0,64150.0,0.55785544]
[1724600472357,0.14213255,64151.0,64150.0,0.3612]
[1724600472762,0.14213255,64151.0,64150.0,0.0004]
[1724600472967,0.14213255,64151.0,64150.0,0.3612]
[1724600473659,0.14213255,64151.0,64150.0,0.0004]
[1724600473857,0.14213255,64151.0,64150.0,0.3612]
[1724600476366,0.14213255,64151.0,64150.0,0.43913887]
[1724600476566,0.14213255,64151.0,64150.0,0.5578553]
[1724600476865,0.079902,64151.0,64150.0,0.5578553]
[1724600478369,0.079902,64151.0,64150.0,0.1970553]
[1724600478567,0.079902,64151.0,64150.0,0.5578553]
[1724600478970,0.079902,64151.0,64150.0,0.55785523]
[1724600481367,0.14213255,64151.0,64150.0,0.43913887]
[1724600482368,0.14213255,64151.0,64150.0,0.07833887]
[1724600482671,0.14213255,64151.0,64150.0,0.43913887]
[1724600482855,0.14213255,64151.0,64150.0,0.07833887]
[1724600483059,0.14213255,64151.0,64150.0,0.43913887]
[1724600483363,0.14213255,64151.0,64150.0,0.3612]
[1724600483863,0.14213255,64151.0,64150.0,0.43913887]
[1724600485266,0.14213255,64151.0,64150.0,0.64785521]
[1724600485771,0.079902,64151.0,64150.0,0.4512]
[1724600486367,0.079902,64151.0,64150.0,0.0904]
[1724600486670,0.079902,64151.0,64150.0,0.4512]
[1724600486869,0.079902,64151.0,64150.0,0.0904]
[1724600487071,0.079902,64151.0,64150.0,0.4512]
[1724600487464,0.079902,64151.0,64150.0,0.0904]
[1724600487863,0.079902,64151.0,64150.0,0.4512]
[1724600488271,0.079902,64151.0,64150.0,0.529103]
[1724600488272,0.002,64151.0,64150.0,0.529103]
[1724600488769,0.06423759,64151.0,64150.0,0.72575728]
[1724600489261,0.06423759,64151.0,64150.0,0.60704187]
[1724600489769,0.06423759,64151.0,64150.0,0.529103]
[1724600489968,0.002,64151.0,64150.0,0.529103]
[1724600490164,0.06423288,64151.0,64150.0,0.60704187]
[1724600490367,0.06423288,64151.0,64150.0,0.529103]
[1724600490569,0.06423288,64151.0,64150.0,0.60704187]
[1724600490864,0.06423288,64151.0,64150.0,0.62598075]
[1724600491069,0.06423288,64151.0,64150.0,0.54804188]
[1724600491272,0.07779215,64156.0,64150.0,0.66679116]
[1724600491465,0.09358444,64160.0,64150.0,0.66679116]
[1724600491466,0.06223459,64157.0,64156.0,0.077896]
[1724600491676,0.06223459,64158.0,64157.0,0.077895]
[1724600491866,0.06223459,64159.0,64158.0,0.077894]
[1724600492169,0.00023386,64160.0,64159.0,0.077892]
[1724600492372,0.01904352,64160.0,64159.0,0.077892]
[1724600492667,0.00023386,64160.0,64159.0,0.27444611]
[1724600492874,0.00023386,64160.0,64159.0,0.19658255]
[1724600493076,0.00023386,64160.0,64159.0,0.15610682]
[1724600493464,0.00023386,64160.0,64159.0,0.27479239]
[1724600493662,0.00023386,64160.0,64159.0,0.15610682]
[1724600493867,0.077884,64166.0,64160.0,0.07789]
[1724600494068,0.077884,64166.0,64165.0,0.4508]
[1724600494669,0.077884,64166.0,64165.0,0.4512]
[1724600495270,0.09673306,64166.0,64165.0,0.4512]
[1724600495470,0.10773306,64166.0,64165.0,0.4512]
[1724600495665,0.11873306,64166.0,64165.0,0.4512]
[1724600496170,0.11873306,64166.0,64165.0,0.49784236]
[1724600496773,0.11873306,64166.0,64165.0,0.13704236]
[1724600496971,0.11873306,64166.0,64165.0,0.49784236]
[1724600498471,0.11873306,64166.0,64165.0,0.4512]
[1724600498873,0.11873306,64166.0,64165.0,0.49784236]
[1724600499077,0.11873306,64166.0,64165.0,0.4512]
[1724600499779,0.20873306,64166.0,64165.0,0.3612]
[1724600500483,0.11873306,64166.0,64165.0,0.3612]
[1724600500875,0.04084906,64166.0,64165.0,0.49784236]
[1724600501186,0.04084906,64166.0,64165.0,0.4512]
[1724600501579,0.04084906,64166.0,64165.0,0.5134513]
[1724600501775,0.04084906,64166.0,64165.0,0.57568905]
[1724600502181,0.04084906,64166.0,64165.0,0.529085]
[1724600502578,0.02984906,64166.0,64165.0,0.529085]
[1724600502789,0.02984906,64166.0,64165.0,0.530085]
[1724600503376,0.011,64166.0,64165.0,0.530085]
[1724600503680,0.06223459,64179.0,64165.0,0.530085]
[1724600503681,0.06223459,64183.0,64165.0,0.5022]
[1724600503982,0.3608,64186.0,64165.0,0.5022]
[1724600503983,0.077866,64181.0,64180.0,0.4508]
[1724600505284,0.091866,64181.0,64180.0,0.4508]
[1724600506285,0.181866,64181.0,64180.0,0.3608]
[1724600507178,0.195866,64181.0,64180.0,0.3618]
[1724600508285,0.105866,64181.0,64180.0,0.4518]
[1724600508493,0.105866,64181.0,64180.0,0.4508]
[1724600508494,0.092866,64181.0,64180.0,0.4508]
[1724600508783,0.078866,64181.0,64180.0,0.4508]
[1724600508979,0.081866,64181.0,64180.0,0.4508]
[1724600509382,0.078866,64181.0,64180.0,0.4508]
[1724600509692,0.078866,64181.0,64180.0,0.4528]
[1724600510789,0.077866,64181.0,64180.0,0.4548]
[1724600511185,0.077866,64181.0,64180.0,0.094]
[1724600511492,0.077866,64181.0,64180.0,0.4528]
[1724600511788,0.077866,64181.0,64180.0,0.4548]
[1724600513983,0.077866,64181.0,64180.0,0.3648]
[1724600516891,0.077866,64181.0,64180.0,0.004]
[1724600517392,0.077866,64181.0,64180.0,0.3648]
[1724600520499,0.077866,64181.0,64180.0,0.442667]
[1724600521297,0.08082162,64186.0,64182.0,0.077864]
[1724600521596,0.077861,64185.0,64184.0,0.09]
[1724600523587,0.077863,64183.0,64182.0,0.077864]
[1724600523788,0.09,64185.0,64181.0,0.3608]
[1724600523789,0.077864,64182.0,64181.0,0.3608]
[1724600523985,0.167864,64182.0,64181.0,0.3608]
[1724600524590,0.168264,64182.0,64181.0,0.3608]
[1724600525088,0.168264,64182.0,64181.0,0.001]
[1724600525792,0.168264,64182.0,64181.0,0.002]
[1724600528093,0.23049859,64182.0,64181.0,0.002]
[1724600529092,0.168264,64182.0,64181.0,0.002]
[1724600531094,0.24605615,64182.0,64181.0,0.002]
[1724600532403,0.168264,64182.0,64181.0,0.002]
[1724600532802,0.24605615,64182.0,64181.0,0.002]
[1724600533109,0.168264,64182.0,64181.0,0.04870824]
[1724600536114,0.168264,64182.0,64181.0,0.002]
[1724600540708,0.078264,64182.0,64181.0,0.06410529]
[1724600541316,0.0004,64182.0,64181.0,0.14197129]
[1724600541522,0.0004,64182.0,64181.0,0.18727129]
[1724600542322,0.0004,64182.0,64181.0,0.125166]
[1724600544424,0.06265439,64182.0,64181.0,0.485966]
[1724600544722,0.0004,64182.0,64181.0,0.485966]
[1724600544912,0.0004,64182.0,64181.0,0.60461899]
[1724600545921,0.00023386,64187.0,64181.0,0.67975549]
[1724600546125,0.00023386,64187.0,64186.0,0.43863877]
[1724600546317,0.00023386,64187.0,64186.0,0.3608]
[1724600546716,0.00023386,64187.0,64186.0,0.3612]
[1724600546919,0.00023386,64187.0,64186.0,0.51689877]
[1724600547320,0.00023386,64187.0,64186.0,1.38429877]
[1724600547526,0.00523386,64187.0,64186.0,1.30646]
[1724600547722,0.00523386,64187.0,64186.0,0.90646]
[1724600548538,0.00523386,64187.0,64186.0,0.43906]
[1724600548827,0.00523386,64187.0,64186.0,0.52906]
[1724600548828,0.00923386,64187.0,64186.0,0.52906]
[1724600549423,0.17709186,64187.0,64186.0,0.3612]
[1724600549623,0.17709186,64187.0,64186.0,0.0004]
[1724600549826,0.17709186,64187.0,64186.0,0.04704764]
[1724600550123,0.17709186,64187.0,64186.0,0.0004]
[1724600550319,0.17309186,64187.0,64186.0,0.0054]
[1724600550521,0.16809186,64187.0,64186.0,0.0094]
[1724600559532,0.07809186,64187.0,64186.0,0.0094]
[1724600559728,0.16809186,64187.0,64186.0,0.0094]
[1724600561132,0.23027034,64187.0,64186.0,0.0094]
[1724600564330,0.14027034,64187.0,64186.0,0.0994]
[1724600564539,0.06241234,64187.0,64186.0,0.14604764]
[1724600564839,0.00023386,64187.0,64186.0,0.14604764]
[1724600565834,0.07809186,64187.0,64186.0,0.0994]
[1724600566234,0.16809186,64187.0,64186.0,0.0094]
[1724600571442,0.16809186,64187.0,64186.0,0.05607686]
[1724600571643,0.16809186,64187.0,64186.0,0.0094]
[1724600571939,0.16809186,64187.0,64186.0,0.05607686]
[1724600573441,0.16809186,64187.0,64186.0,0.08726]
[1724600576239,0.07809186,64187.0,64186.0,0.17726]
[1724600577645,0.00023386,64187.0,64186.0,0.17726]
[1724600578444,0.00023386,64187.0,64186.0,0.19625878]
[1724600581142,0.00023386,64187.0,64186.0,0.17726]
[1724600584240,0.00023386,64187.0,64186.0,0.53806]
[1724600584556,0.00023386,64187.0,64186.0,0.60031001]
[1724600584755,0.00023386,64187.0,64186.0,0.23951001]
[1724600585050,0.00023386,64187.0,64186.0,0.60031001]
[1724600586246,0.00023386,64187.0,64186.0,0.53806]
[1724600589650,0.00023386,64187.0,64186.0,0.54806]
[1724600590355,0.00023386,64187.0,64186.0,0.62589877]
[1724600590553,0.00023386,64187.0,64186.0,0.54806]
[1724600590943,0.00023386,64187.0,64186.0,0.53806]
[1724600591149,0.00023386,64187.0,64186.0,0.65669812]
[1724600591344,0.00023386,64187.0,64186.0,0.53806]
[1724600591547,0.00023386,64187.0,64186.0,0.61586684]
[1724600591854,0.00023386,64187.0,64186.0,0.44806]
[1724600595947,0.00023386,64187.0,64186.0,0.08726]
[1724600596155,0.00023386,64187.0,64186.0,0.44806]
[1724600600456,0.00023386,64187.0,64186.0,0.52586684]
[1724600601362,0.07809186,64187.0,64186.0,0.52586684]
[1724600602564,0.07809186,64187.0,64186.0,0.64451106]
[1724600602967,0.07809186,64187.0,64186.0,0.28371106]
[1724600603457,0.07809186,64187.0,64186.0,0.64451106]
[1724600604353,0.07809186,64187.0,64186.0,0.56665106]
[1724600604660,0.12719186,64187.0,64186.0,0.07170144]
[1724600604864,0.20500713,64187.0,64186.0,0.0094]
[1724600605564,0.12719186,64187.0,64186.0,0.0094]
[1724600607765,0.2050181,64187.0,64186.0,0.0094]
[1724600610466,0.12719186,64187.0,64186.0,0.0094]
[1724600616386,0.07809186,64187.0,64186.0,0.0094]
[1724600616769,0.14032807,64187.0,64186.0,0.0094]
[1724600618873,0.00023386,64187.0,64186.0,0.51036144]
[1724600619062,0.00023386,64187.0,64186.0,0.44806]
[1724600620969,0.00023386,64187.0,64186.0,0.45806]
[1724600621165,0.06223621,64193.0,64186.0,0.49884314]
[1724600621375,0.077845,64198.0,64192.0,0.3608]
[1724600621376,0.07782624,64196.0,64192.0,0.3608]
[1724600621570,0.0622413,64194.0,64193.0,0.077851]
[1724600622776,0.0622413,64194.0,64193.0,0.2145111]
[1724600622968,0.01863483,64198.0,64197.0,0.077846]
[1724600623167,0.01863483,64198.0,64197.0,0.21450185]
[1724600623168,0.06222515,64198.0,64197.0,0.21450185]
[1724600623373,0.06245882,64200.0,64198.0,0.077844]
[1724600623577,0.00023367,64200.0,64199.0,0.3608]
[1724600624175,0.00023367,64200.0,64199.0,0.3612]
[1724600624576,0.00923367,64200.0,64199.0,0.3612]
[1724600624777,0.01823367,64200.0,64199.0,0.3622]
[1724600624973,0.00923367,64200.0,64199.0,0.3622]
[1724600625175,0.02023367,64200.0,64199.0,0.3632]
[1724600625971,0.02023367,64200.0,64199.0,0.0024]
[1724600626177,0.02023367,64200.0,64199.0,0.40984802]
[1724600626571,0.02023367,64200.0,64199.0,0.441044]
[1724600627281,0.11023367,64200.0,64199.0,0.441044]
[1724600630974,0.11023367,64200.0,64199.0,0.3632]
[1724600631173,0.18807667,64200.0,64199.0,0.3632]
[1724600633681,0.18207667,64200.0,64199.0,0.3632]
[1724600633883,0.17707667,64200.0,64199.0,0.3622]
[1724600644086,0.17707667,64200.0,64199.0,0.0014]
[1724600645991,0.08707667,64200.0,64199.0,0.0014]
[1724600646293,0.17707667,64200.0,64199.0,0.0014]
[1724600646483,0.23930182,64200.0,64199.0,0.0014]
[1724600647683,0.17707667,64200.0,64199.0,0.0014]
[1724600649493,0.08707667,64200.0,64199.0,0.0914]
[1724600649691,0.08707667,64200.0,64199.0,0.13804802]
[1724600650086,0.08707667,64200.0,64199.0,0.0914]
[1724600651494,0.14934095,64200.0,64199.0,0.0914]
[1724600652496,0.08707667,64200.0,64199.0,0.0914]
[1724600653391,0.14936945,64200.0,64199.0,0.0914]
[1724600653588,0.14936919,64200.0,64199.0,0.0914]
[1724600653789,0.08707667,64200.0,64199.0,0.0914]
[1724600655293,0.08707667,64200.0,64199.0,0.0014]
[1724600655593,0.17707667,64200.0,64199.0,0.0014]
[1724600660896,0.92731367,64200.0,64195.0,0.06227907]
[1724600661091,0.077849,64195.0,64192.0,0.06227907]
[1724600661294,0.077849,64195.0,64191.0,0.06227907]
[1724600661295,0.077852,64192.0,64191.0,0.06227907]
[1724600661591,0.077855,64190.0,64189.0,0.06227907]
[1724600661798,0.167855,64190.0,64189.0,0.06227907]
[1724600662509,0.077856,64189.0,64188.0,0.42307907]
[1724600662804,0.14010969,64189.0,64188.0,0.42307907]
[1724600663199,0.14050969,64189.0,64188.0,0.42307907]
[1724600663904,0.14150969,64189.0,64188.0,0.42907907]
[1724600664100,0.079256,64189.0,64188.0,0.51907907]
[1724600664302,0.0014,64189.0,64188.0,0.534657]
[1724600664494,0.0024,64189.0,64188.0,0.542657]
[1724600665004,0.07785,64194.0,64190.0,0.077854]
[1724600665307,0.06225369,64196.0,64192.0,0.167852]
[1724600665527,0.16807384,64200.0,64192.0,0.167852]
[1724600665528,0.06225369,64197.0,64195.0,0.4508]
[1724600665806,0.06225369,64197.0,64195.0,0.51300583]
[1724600666401,0.077846,64197.0,64195.0,0.51300583]
[1724600666611,0.077846,64197.0,64195.0,0.4508]
[1724600666992,0.077846,64197.0,64196.0,0.3608]
[1724600667197,0.078846,64197.0,64196.0,0.3608]
[1724600668711,0.079846,64197.0,64196.0,0.3608]
[1724600669301,0.080846,64197.0,64196.0,0.3608]
[1724600673604,0.14309969,64197.0,64196.0,0.3608]
[1724600674713,0.080846,64197.0,64196.0,0.3608]
[1724600675014,0.14309969,64197.0,64196.0,0.3608]
[1724600675312,0.080846,64197.0,64196.0,0.3608]
[1724600675809,0.170846,64197.0,64196.0,0.44248234]
[1724600676210,0.170846,64197.0,64196.0,0.38027258]
[1724600676609,0.170846,64197.0,64196.0,0.01947258]
[1724600676813,0.170846,64197.0,64196.0,0.38027258]
[1724600681313,0.170846,64197.0,64196.0,0.01947258]
[1724600681527,0.23308064,64197.0,64195.0,0.077848]
[1724600681707,0.23308064,64197.0,64196.0,0.38027287]
[1724600683518,0.23308064,64197.0,64196.0,0.01947287]
[1724600683818,0.23208064,64197.0,64196.0,0.38027287]
[1724600684321,0.23208064,64197.0,64196.0,0.01947287]
[1724600684521,0.23308064,64197.0,64196.0,0.38027287]
[1724600685616,0.170846,64197.0,64196.0,0.3608]
[1724600687013,0.170846,64197.0,64195.0,0.077848]
[1724600687217,0.170846,64197.0,64196.0,0.3608]
[1724600687722,0.170846,64197.0,64196.0,0.42302346]
[1724600688118,0.169846,64197.0,64196.0,0.42302346]
[1724600689013,0.169846,64197.0,64196.0,0.06222346]
[1724600689213,0.169846,64197.0,64196.0,0.42302346]
[1724600689615,0.169846,64197.0,64196.0,0.06222346]
[1724600689920,0.169846,64197.0,64196.0,0.42302346]
[1724600690423,0.169846,64197.0,64196.0,0.06222346]
[1724600690622,0.170846,64197.0,64196.0,0.06222346]
[1724600690825,0.170846,64197.0,64196.0,0.42302346]
[1724600691010,0.170846,64197.0,64196.0,0.06222346]
[1724600691215,0.170846,64197.0,64196.0,0.42302346]
[1724600691418,0.170846,64197.0,64196.0,0.3608]
[1724600692513,0.170846,64197.0,64195.0,0.077848]
[1724600692713,0.170846,64197.0,64196.0,0.3608]
[1724600693113,0.170846,64197.0,64195.0,0.077848]
[1724600693322,0.170846,64197.0,64196.0,0.3608]
[1724600693526,0.23308064,64197.0,64196.0,0.3608]
[1724600693923,0.23208064,64197.0,64196.0,0.3608]
[1724600694455,0.169846,64197.0,64196.0,0.3608]
[1724600694723,0.170846,64197.0,64196.0,0.3608]
[1724600696514,0.170846,64197.0,64195.0,0.15563549]
[1724600696730,0.170846,64197.0,64196.0,0.4230768]
[1724600697227,0.170846,64197.0,64196.0,0.3608]
[1724600697629,0.169846,64197.0,64196.0,0.3608]
[1724600698524,0.170846,64197.0,64196.0,0.3608]
[1724600698723,0.170846,64197.0,64195.0,0.077848]
[1724600698924,0.170846,64197.0,64196.0,0.3608]
[1724600699421,0.170846,64197.0,64195.0,0.077848]
[1724600699621,0.170846,64197.0,64196.0,0.3608]
[1724600699821,0.168846,64197.0,64196.0,0.3608]
[1724600701023,0.170846,64197.0,64196.0,0.3608]
[1724600701432,0.077847,64196.0,64195.0,0.077848]
[1724600702031,0.077847,64196.0,64192.0,0.07778749]
[1724600702032,0.077851,64193.0,64192.0,0.06229542]
[1724600702324,0.077852,64192.0,64191.0,0.06229542]
[1724600702535,0.29553663,64192.0,64191.0,0.06229542]
[1724600703029,0.077853,64191.0,64190.0,0.42309542]
[1724600703724,0.077853,64191.0,64190.0,0.3608]
[1724600704231,0.077853,64191.0,64190.0,0.3668]
[1724600704624,0.14012528,64191.0,64190.0,0.3668]
[1724600705531,0.077853,64191.0,64190.0,0.3668]
[1724600705824,0.077853,64191.0,64190.0,0.61462209]
[1724600706020,0.077853,64191.0,64190.0,0.49598749]
[1724600706422,0.077853,64191.0,64190.0,0.53683387]
[1724600707731,0.077853,64191.0,64190.0,0.53683229]
[1724600709226,0.06227228,64197.0,64190.0,0.53683229]
[1724600709429,0.06227228,64197.0,64196.0,0.15222085]
[1724600709632,0.08162097,64197.0,64196.0,0.15222085]
[1724600710134,0.06227228,64197.0,64196.0,0.15222085]
[1724600711135,0.06327228,64197.0,64196.0,0.15222085]
[1724600711728,0.001,64197.0,64196.0,0.09]
[1724600712727,0.003,64197.0,64196.0,0.09]
[1724600712926,0.003,64197.0,64196.0,0.167847]
[1724600712927,0.06525685,64197.0,64196.0,0.167847]
[1724600713130,0.06525537,64197.0,64196.0,0.23006785]
[1724600713531,0.06525537,64197.0,64196.0,0.167847]
[1724600713739,0.06525537,64197.0,64196.0,0.23006785]
[1724600713938,0.06525537,64197.0,64196.0,0.167847]
[1724600715042,0.06525537,64197.0,64196.0,0.23006785]
[1724600715340,0.06525537,64197.0,64196.0,0.167847]
[1724600716141,0.06525537,64197.0,64196.0,0.528647]
[1724600716341,0.06525537,64197.0,64196.0,0.59086785]
[1724600717043,0.003,64197.0,64196.0,0.59086785]
[1724600717936,0.003,64197.0,64196.0,0.528647]
[1724600726650,0.003,64197.0,64196.0,0.438647]
[1724600726946,0.003,64197.0,64196.0,0.528647]
[1724600727240,0.003,64197.0,64196.0,0.438647]